[Event "1st Easter Festival-A 2021"]
[Site "Bassano del Grappa"]
[Date "2021.04.02"]
[Round "3.9"]
[White "Brotto, Alessandro"]
[Black "Tisaj, Domen"]
[Result "1/2-1/2"]
[ECO "B51"]
[WhiteElo "1970"]
[BlackElo "2287"]
[Annotator "ChessBase"]
[PlyCount "119"]
[EventDate "2021.04.01"]
[EventType "swiss"]
[EventCountry "ITA"]
[SourceTitle "playchess.com"]
[Source "ChessBase"]
[SourceQuality "1"]
[TimeControl "5400+30"]

1. e4 {[%emt 0:01:31]} c5 {[%emt 0:00:00]} 2. Nf3 {[%emt 0:00:14]} d6 {[%emt 0:00:14]} 3. Bb5+ {[%emt 0:00:15]} Nd7 {[%emt 0:00:40]} 4. O-O {[%emt 0:00:58]} a6 {[%emt 0:00:47]} 5. Bd3 {[%emt 0:00:16]} Ngf6 {[%emt 0:00:14]} 6. c3 {[%emt 0:03:31]} b5 {[%emt 0:00:36]} 7. Bc2 {[%emt 0:03:01]} Bb7 {[%emt 0:00:12]} 8. Re1 {[%emt 0:01:39]} e6 {[%emt 0:00:11]} 9. a4 {[%emt 0:01:42]} Be7 {[%emt 0:02:09]} 10. d4 {[%emt 0:04:34]} Rc8 {[%emt 0:16:41]} 11. axb5 {[%emt 0:07:25]} axb5 {[%emt 0:00:12]} 12. e5 {[%emt 0:14:14]} dxe5 {[%emt 0:04:51]} 13. dxe5 {[%emt 0:01:40]} Nd5 {[%emt 0:00:12]} 14. Nbd2 {[%emt 0:05:53]} c4 {[%emt 0:01:17]} 15. Ne4 {[%emt 0:05:13]} h6 {[%emt 0:17:09]} 16. Nd4 {[%emt 0:09:09]} Qb6 {[%emt 0:16:27]} 17. Qg4 {[%emt 0:03:04]} Kf8 {[%emt 0:06:54]} 18. Ng3 {[%emt 0:08:58]} Bc5 {[%emt 0:04:34]} 19. Nh5 {[%emt 0:07:19]} g5 {[%emt 0:05:25]} 20. h4 {[%emt 0:02:59]} Bxd4 {[%emt 0:03:39]} 21. cxd4 {[%emt 0:00:29]} Nb4 {[%emt 0:01:10]} 22. Bb1 {[%emt 0:02:45]} Nd3 {[%emt 0:04:13]} 23. Bxd3 {[%emt 0:02:57]} cxd3 {[%emt 0:00:03]} 24. Bd2 {[%emt 0:00:47]} Rc4 {[%emt 0:02:27]} 25. Rec1 {[%emt 0:03:21]} Rg8 {[%emt 0:04:14]} 26. Nf6 {[%emt 0:05:20]} Nxf6 {[%emt 0:01:00]} 27. exf6 {[%emt 0:00:09]} Rg6 {[%emt 0:00:22]} 28. hxg5 {[%emt 0:00:55]} hxg5 {[%emt 0:00:50]} 29. b3 {[%emt 0:02:12]} Rc2 {[%emt 0:02:02]} 30. Bb4+ {[%emt 0:01:01]} Kg8 {[%emt 0:00:12]} 31. Rxc2 {[%emt 0:01:10]} dxc2 {[%emt 0:00:02]} 32. Rc1 {[%emt 0:00:28]} Qc6 {[%emt 0:00:14]} 33. Bc5 {[%emt 0:00:28]} Qe4 {[%emt 0:04:20]} 34. Qxe4 {[%emt 0:00:25]} Bxe4 {[%emt 0:00:02]} 35. f3 {[%emt 0:00:14]} Bd3 {[%emt 0:00:11]} 36. Be7 {[%emt 0:00:18]} g4 {[%emt 0:00:13]} 37. Kf2 {[%emt 0:00:34]} gxf3 {[%emt 0:00:44]} 38. Kxf3 {[%emt 0:00:44]} Rg5 {[%emt 0:00:15]} 39. g4 {[%emt 0:00:44]} Rd5 {[%emt 0:02:10]} 40. Ke3 {[%emt 0:00:22]} Bg6 {[%emt 0:00:22]} 41. Rh1 {[%emt 0:00:12]} e5 {[%emt 0:00:42]} 42. Bc5 {[%emt 0:00:51]} b4 {[%emt 0:00:52]} 43. Ra1 {[%emt 0:00:49]} Rd8 {[%emt 0:00:30]} 44. Kd2 {[%emt 0:00:38]} exd4 {[%emt 0:00:16]} 45. Bxb4 {[%emt 0:00:16]} Rb8 {[%emt 0:00:23]} 46. Ra4 {[%emt 0:00:37]} Be4 {[%emt 0:00:07]} 47. Ba3 {[%emt 0:00:35]} Rxb3 {[%emt 0:01:28]} 48. Rxd4 {[%emt 0:00:17]} Rxa3 {[%emt 0:00:08]} 49. Rxe4 {[%emt 0:00:07]} Rc3 {[%emt 0:00:04]} 50. Re1 {[%emt 0:01:04]} Rc4 {[%emt 0:00:18]} 51. Rh1 {[%emt 0:00:22]} Rc6 {[%emt 0:00:30]} 52. Kc1 {[%emt 0:00:24]} Rxf6 {[%emt 0:00:18]} 53. Kxc2 {[%emt 0:00:07]} Kg7 {[%emt 0:00:13]} 54. Kd3 {[%emt 0:00:37]} Re6 {[%emt 0:00:07]} 55. Rf1 {[%emt 0:00:51]} Kg6 {[%emt 0:00:06]} 56. Rf5 {[%emt 0:00:15]} f6 {[%emt 0:00:10]} 57. Kd4 {[%emt 0:00:35]} Re1 {[%emt 0:00:06]} 58. Kd5 {[%emt 0:00:13]} Rg1 {[%emt 0:00:19]} 59. Ke6 {[%emt 0:00:09]} Rxg4 {[%emt 0:00:56]} 60. Rxf6+ {[%emt 0:00:09]} 1/2-1/2

[Event "1st Easter Festival-A 2021"]
[Site "Bassano del Grappa"]
[Date "2021.04.02"]
[Round "3.10"]
[White "Nilssen, Ellen Fredericia"]
[Black "Diermair, Andreas"]
[Result "0-1"]
[ECO "D38"]
[WhiteElo "2168"]
[BlackElo "2487"]
[Annotator "ChessBase"]
[PlyCount "88"]
[EventDate "2021.04.01"]
[EventType "swiss"]
[EventCountry "ITA"]
[SourceTitle "playchess.com"]
[Source "ChessBase"]
[SourceQuality "1"]
[TimeControl "5400+30"]

1. d4 {[%emt 0:02:05]} Nf6 {[%emt 0:00:00]} 2. c4 {[%emt 0:00:20]} e6 {[%emt 0:00:00]} 3. Nf3 {[%emt 0:00:14]} d5 {[%emt 0:00:20]} 4. Nc3 {[%emt 0:00:11]} Bb4 {[%emt 0:00:09]} 5. cxd5 {[%emt 0:01:28]} exd5 {[%emt 0:00:07]} 6. Bg5 {[%emt 0:00:10]} h6 {[%emt 0:00:45]} 7. Bxf6 {[%emt 0:00:10]} Qxf6 {[%emt 0:00:07]} 8. e3 {[%emt 0:00:10]} c6 {[%emt 0:02:29]} 9. Rc1 {[%emt 0:11:02]} O-O {[%emt 0:00:34]} 10. h3 {[%emt 0:15:22]} Nd7 {[%emt 0:07:06]} 11. Bd3 {[%emt 0:01:56]} Re8 {[%emt 0:02:15]} 12. O-O {[%emt 0:00:17]} Nf8 {[%emt 0:07:10]} 13. a3 {[%emt 0:10:17]} Bd6 {[%emt 0:02:29]} 14. e4 {[%emt 0:00:14]} dxe4 {[%emt 0:05:24]} 15. Nxe4 {[%emt 0:08:30]} Qd8 {[%emt 0:00:15]} 16. Re1 {[%emt 0:02:00]} Re7 {[%emt 0:08:50]} 17. Bb1 {[%emt 0:07:49]} Be6 {[%emt 0:01:56]} 18. Qd3 {[%emt 0:05:47]} Rd7 {[%emt 0:05:21]} 19. Rcd1 {[%emt 0:03:45]} a5 {[%emt 0:02:02]} 20. Qe2 {[%emt 0:03:54]} Bd5 {[%emt 0:11:41]} 21. Nc5 {[%emt 0:03:42]} Re7 {[%emt 0:01:09]} 22. Qd3 {[%emt 0:00:08]} Qb6 {[%emt 0:04:10]} 23. Rxe7 {[%emt 0:02:55]} Bxe7 {[%emt 0:00:02]} 24. Nd7 {[%emt 0:00:12]} Qb3 {[%emt 0:00:10]} 25. Nxf8 {[%emt 0:01:24]} Qxd3 {[%emt 0:00:10]} 26. Bxd3 {[%emt 0:02:08]} Kxf8 {[%emt 0:00:10]} 27. Ne5 {[%emt 0:00:06]} Rd8 {[%emt 0:01:32]} 28. Bc4 {[%emt 0:00:50]} Bf6 {[%emt 0:02:08]} 29. Be2 {[%emt 0:04:32]} Bb3 {[%emt 0:04:10]} 30. Rd3 {[%emt 0:00:21]} a4 {[%emt 0:00:14]} 31. f4 {[%emt 0:04:10]} g5 {[%emt 0:02:07]} 32. g3 {[%emt 0:01:01]} gxf4 {[%emt 0:04:48]} 33. gxf4 {[%emt 0:00:02]} Bc2 {[%emt 0:01:52]} 34. Rd2 {[%emt 0:00:08]} Be4 {[%emt 0:01:15]} 35. Kf2 {[%emt 0:01:02]} Ke7 {[%emt 0:02:25]} 36. Ke3 {[%emt 0:00:24]} Bd5 {[%emt 0:00:15]} 37. Bd1 {[%emt 0:01:49]} Rg8 {[%emt 0:02:43]} 38. Rd3 {[%emt 0:03:24]} Rg2 {[%emt 0:02:58]} 39. Ng4 {[%emt 0:01:39]} Bh4 {[%emt 0:03:24]} 40. Bf3 {[%emt 0:01:24]} Rg3 {[%emt 0:00:40]} 41. Ke2 {[%emt 0:00:27]} Bc4 {[%emt 0:00:20]} 42. Nxh6 {[%emt 0:00:45]} Bxd3+ {[%emt 0:00:14]} 43. Kxd3 {[%emt 0:00:06]} Rxf3+ {[%emt 0:00:13]} 44. Ke4 {[%emt 0:00:05]} Rxh3 {[%emt 0:00:09]} 0-1

[Event "1st Easter Festival-A 2021"]
[Site "Bassano del Grappa"]
[Date "2021.04.02"]
[Round "4.2"]
[White "Basso, Pier Luigi"]
[Black "Niemann, Hans Moke"]
[Result "1/2-1/2"]
[ECO "D14"]
[WhiteElo "2521"]
[BlackElo "2526"]
[Annotator "ChessBase"]
[PlyCount "23"]
[EventDate "2021.04.01"]
[EventType "swiss"]
[EventCountry "ITA"]
[SourceTitle "playchess.com"]
[Source "ChessBase"]
[SourceQuality "1"]
[TimeControl "5400+30"]

1. d4 {[%emt 0:05:18]} d5 {[%emt 0:00:00]} 2. c4 {[%emt 0:00:11]} c6 {[%emt 0:00:00]} 3. cxd5 {[%emt 0:00:02]} cxd5 {[%emt 0:00:00]} 4. Nf3 {[%emt 0:00:02]} Nf6 {[%emt 0:00:00]} 5. Nc3 {[%emt 0:00:02]} Nc6 {[%emt 0:00:00]} 6. Bf4 {[%emt 0:00:02]} Bf5 {[%emt 0:00:00]} 7. e3 {[%emt 0:00:02]} e6 {[%emt 0:00:01]} 8. Bd3 {[%emt 0:00:02]} Bxd3 {[%emt 0:00:03]} 9. Qxd3 {[%emt 0:00:04]} Bd6 {[%emt 0:00:04]} 10. Bxd6 {[%emt 0:00:03]} Qxd6 {[%emt 0:00:04]} 11. O-O {[%emt 0:00:03]} O-O {[%emt 0:00:05]} 12. Rac1 {[%emt 0:00:02]} 1/2-1/2

[Event "1st Easter Festival-A 2021"]
[Site "Bassano del Grappa"]
[Date "2021.04.02"]
[Round "4.3"]
[White "Dragnev, Valentin"]
[Black "Dardha, Daniel"]
[Result "1/2-1/2"]
[ECO "B30"]
[WhiteElo "2564"]
[BlackElo "2516"]
[Annotator "RC"]
[PlyCount "52"]
[EventDate "2021.04.01"]
[EventType "swiss"]
[EventCountry "ITA"]
[SourceTitle "playchess.com"]
[Source "ChessBase"]
[SourceQuality "1"]
[TimeControl "5400+30"]

1. e4 {[%emt 0:00:46]} c5 {[%emt 1:30:30]} 2. Nf3 Nc6 3. Bb5 e5 {[%emt 0:00:00]} 4. O-O {[%emt 0:01:15]} Bd6 {[%emt 0:00:00]} 5. c3 {[%emt 0:03:06]} a6 {[%emt 0:00:00]} 6. Ba4 {[%emt 0:01:57]} b5 {[%emt 0:00:00]} 7. Bc2 {[%emt 0:00:20]} Nge7 {[%emt 0:03:00]} 8. a3 Bc7 9. b4 cxb4 {[%emt 0:00:00]} 10. axb4 {[%emt 0:05:24]} O-O {[%emt 0:00:00]} 11. d3 {[%emt 0:00:56]} d5 {[%emt 0:00:00]} 12. Nbd2 {[%emt 0:02:42]} Bg4 {[%emt 0:00:00]} 13. h3 {[%emt 0:01:46]} Bh5 {[%emt 0:00:00]} 14. Re1 {[%emt 0:04:23]} Bb6 {[%emt 0:00:00]} 15. g4 {[%emt 0:11:07]} Bg6 {[%emt 0:00:00]} 16. Nf1 {[%emt 0:00:09]} Qc7 {[%emt 0:00:00]} 17. Bd2 {[%emt 0:02:06]} Rfd8 {[%emt 0:00:00]} 18. Bb3 {[%emt 0:10:11]} Kh8 {[%emt 0:00:00]} 19. Qe2 {[%emt 0:04:02]} f6 {[%emt 0:00:00]} 20. Ra3 {[%emt 0:01:36]} a5 {[%emt 0:00:00]} 21. Rea1 {[%emt 0:05:39]} Rac8 {[%emt 0:00:00]} 22. Ng3 axb4 {[%emt 0:00:00]} 23. cxb4 {[%emt 0:03:08]} Nd4 {[%emt 0:00:00]} 24. Nxd4 {[%emt 0:02:30]} Bxd4 {[%emt 0:00:00]} 25. Rc1 {[%emt 0:00:12]} Qd7 {[%emt 0:00:00]} 26. Rxc8 {[%emt 0:03:47]} Rxc8 {[%emt 0:00:00]} 1/2-1/2

[Event "1st Easter Festival-A 2021"]
[Site "Bassano del Grappa"]
[Date "2021.04.02"]
[Round "4.5"]
[White "Lumachi, Gabriele"]
[Black "Checa, Nicolas"]
[Result "0-1"]
[ECO "D15"]
[WhiteElo "2316"]
[BlackElo "2546"]
[Annotator "ChessBase"]
[PlyCount "40"]
[EventDate "2021.04.01"]
[EventType "swiss"]
[EventCountry "ITA"]
[SourceTitle "playchess.com"]
[Source "ChessBase"]
[SourceQuality "1"]
[TimeControl "5400+30"]

1. d4 {[%emt 0:00:00]} d5 {[%emt 0:05:43]} 2. c4 {[%emt 0:00:00]} c6 {[%emt 0:00:04]} 3. Nf3 {[%emt 0:00:00]} Nf6 {[%emt 0:00:03]} 4. e3 {[%emt 0:00:00]} Bf5 {[%emt 0:01:06]} 5. Nc3 {[%emt 0:00:12]} a6 {[%emt 0:00:03]} 6. Ne5 {[%emt 0:00:22]} h6 {[%emt 0:03:10]} 7. Qb3 {[%emt 0:09:25]} Ra7 {[%emt 0:00:13]} 8. a4 {[%emt 0:13:06]} e6 {[%emt 0:00:27]} 9. a5 {[%emt 0:00:06]} Nbd7 {[%emt 0:01:32]} 10. f4 {[%emt 0:04:56]} Nxe5 {[%emt 0:02:43]} 11. fxe5 {[%emt 0:00:52]} Ne4 {[%emt 0:00:17]} 12. Qb6 {[%emt 0:09:42]} Qxb6 {[%emt 0:04:15]} 13. axb6 {[%emt 0:00:06]} Ra8 {[%emt 0:00:01]} 14. c5 {[%emt 0:08:01]} Be7 {[%emt 0:05:51]} 15. Be2 {[%emt 0:01:39]} f6 {[%emt 0:02:16]} 16. exf6 {[%emt 0:01:33]} Bxf6 {[%emt 0:00:12]} 17. O-O {[%emt 0:10:38]} O-O {[%emt 0:01:11]} 18. Bd3 {[%emt 0:08:53]} Nxc3 {[%emt 0:01:26]} 19. Bxf5 {[%emt 0:02:06]} Ne2+ {[%emt 0:00:45]} 20. Kf2 {[%emt 0:00:07]} Nxd4 {[%emt 0:00:36]} 0-1

[Event "1st Easter Festival-A 2021"]
[Site "Bassano del Grappa"]
[Date "2021.04.02"]
[Round "4.8"]
[White "Carlo, Emanuele"]
[Black "Sonis, Francesco"]
[Result "1/2-1/2"]
[ECO "C07"]
[WhiteElo "2282"]
[BlackElo "2477"]
[Annotator "ChessBase"]
[PlyCount "103"]
[EventDate "2021.04.01"]
[EventType "swiss"]
[EventCountry "ITA"]
[SourceTitle "playchess.com"]
[Source "ChessBase"]
[SourceQuality "1"]
[TimeControl "5400+30"]

1. e4 {[%emt 0:00:00]} e6 {[%emt 0:00:00]} 2. d4 {[%emt 0:00:00]} d5 {[%emt 0:00:00]} 3. Nd2 {[%emt 0:00:30]} c5 {[%emt 0:00:00]} 4. Ngf3 {[%emt 0:01:18]} cxd4 {[%emt 0:00:51]} 5. Nxd4 {[%emt 0:00:46]} Nf6 {[%emt 0:00:11]} 6. Bd3 {[%emt 0:02:24]} Bc5 {[%emt 0:03:40]} 7. N4b3 {[%emt 0:06:45]} dxe4 {[%emt 0:07:24]} 8. Nxe4 {[%emt 0:03:51]} Nxe4 {[%emt 0:00:18]} 9. Bxe4 {[%emt 0:00:02]} Qxd1+ {[%emt 0:00:14]} 10. Kxd1 {[%emt 0:00:02]} Bb6 {[%emt 0:00:39]} 11. f4 {[%emt 0:04:09]} Nd7 {[%emt 0:00:33]} 12. Bd2 {[%emt 0:04:02]} Nf6 {[%emt 0:04:07]} 13. Bf3 {[%emt 0:00:34]} Bc7 {[%emt 0:00:41]} 14. Ke2 {[%emt 0:02:15]} Rb8 {[%emt 0:00:37]} 15. g3 {[%emt 0:01:36]} O-O {[%emt 0:08:00]} 16. Be3 {[%emt 0:03:30]} b6 {[%emt 0:00:27]} 17. Nd4 {[%emt 0:01:42]} Bd7 {[%emt 0:05:57]} 18. a4 {[%emt 0:04:00]} a6 {[%emt 0:02:44]} 19. Nc6 {[%emt 0:00:57]} Bxc6 {[%emt 0:00:07]} 20. Bxc6 {[%emt 0:00:04]} Rfc8 {[%emt 0:00:03]} 21. Bf3 {[%emt 0:01:01]} e5 {[%emt 0:00:15]} 22. fxe5 {[%emt 0:03:19]} Bxe5 {[%emt 0:00:11]} 23. c3 {[%emt 0:00:10]} Re8 {[%emt 0:04:33]} 24. Kf2 {[%emt 0:03:44]} b5 {[%emt 0:01:53]} 25. Ba7 {[%emt 0:10:28]} Rbc8 {[%emt 0:00:28]} 26. axb5 {[%emt 0:03:29]} axb5 {[%emt 0:00:10]} 27. Rae1 {[%emt 0:01:27]} Re7 {[%emt 0:04:40]} 28. Be3 {[%emt 0:04:33]} h6 {[%emt 0:02:45]} 29. Bf4 {[%emt 0:02:56]} Rce8 {[%emt 0:05:28]} 30. Bxe5 {[%emt 0:06:47]} Rxe5 {[%emt 0:00:05]} 31. Rxe5 {[%emt 0:00:01]} Rxe5 {[%emt 0:00:08]} 32. Ra1 {[%emt 0:00:41]} Kf8 {[%emt 0:00:39]} 33. Ra5 {[%emt 0:01:37]} Rc5 {[%emt 0:07:03]} 34. Be2 {[%emt 0:04:32]} Ne4+ {[%emt 0:00:12]} 35. Ke3 {[%emt 0:00:18]} Nd6 {[%emt 0:00:04]} 36. Kd4 {[%emt 0:00:31]} Rf5 {[%emt 0:00:16]} 37. c4 {[%emt 0:01:39]} bxc4 {[%emt 0:00:06]} 38. Rxf5 {[%emt 0:00:02]} Nxf5+ {[%emt 0:00:07]} 39. Kxc4 {[%emt 0:00:04]} Ke7 {[%emt 0:00:04]} 40. Kc5 {[%emt 0:00:33]} Nd6 {[%emt 0:04:51]} 41. Bf3 {[%emt 0:01:26]} f5 {[%emt 0:01:06]} 42. b4 {[%emt 0:02:12]} g5 {[%emt 0:01:45]} 43. b5 {[%emt 0:01:46]} Nxb5 {[%emt 0:07:34]} 44. Kxb5 {[%emt 0:00:07]} g4 {[%emt 0:00:01]} 45. Be2 {[%emt 0:05:34]} Kf6 {[%emt 0:00:07]} 46. Kc4 {[%emt 0:00:06]} Kg5 {[%emt 0:00:06]} 47. Kd4 {[%emt 0:00:08]} f4 {[%emt 0:00:04]} 48. Ke4 {[%emt 0:00:15]} fxg3 {[%emt 0:00:10]} 49. hxg3 {[%emt 0:00:04]} h5 {[%emt 0:00:09]} 50. Ke3 {[%emt 0:00:07]} h4 {[%emt 0:00:05]} 51. gxh4+ {[%emt 0:00:05]} Kxh4 {[%emt 0:00:05]} 52. Bxg4 {[%emt 0:00:05]} 1/2-1/2

[Event "1st Easter Festival-A 2021"]
[Site "Bassano del Grappa"]
[Date "2021.04.03"]
[Round "5.3"]
[White "Checa, Nicolas"]
[Black "Maerevoet, Sim"]
[Result "1-0"]
[ECO "D41"]
[WhiteElo "2546"]
[BlackElo "2381"]
[Annotator "ChessBase"]
[PlyCount "67"]
[EventDate "2021.04.01"]
[EventType "swiss"]
[EventCountry "ITA"]
[SourceTitle "playchess.com"]
[Source "ChessBase"]
[SourceQuality "1"]
[TimeControl "5400+30"]

1. d4 {[%emt 0:06:40]} d5 {[%emt 0:00:00]} 2. c4 {[%emt 0:00:30]} e6 {[%emt 0:00:00]} 3. Nc3 {[%emt 0:00:18]} Nf6 {[%emt 0:00:00]} 4. Nf3 {[%emt 0:01:06]} c5 {[%emt 0:00:05]} 5. e3 {[%emt 0:00:06]} Nc6 {[%emt 0:00:05]} 6. cxd5 {[%emt 0:00:09]} Nxd5 {[%emt 0:02:16]} 7. Bc4 {[%emt 0:02:36]} Nxc3 {[%emt 0:10:24]} 8. bxc3 {[%emt 0:00:06]} cxd4 {[%emt 0:00:27]} 9. exd4 {[%emt 0:01:45]} Be7 {[%emt 0:02:11]} 10. O-O {[%emt 0:00:19]} O-O {[%emt 0:00:14]} 11. Re1 {[%emt 0:04:29]} b6 {[%emt 0:01:55]} 12. Bd3 {[%emt 0:02:31]} Bb7 {[%emt 0:01:13]} 13. h4 {[%emt 0:03:22]} Bxh4 {[%emt 0:42:46]} 14. Nxh4 {[%emt 0:00:15]} Qxh4 {[%emt 0:00:05]} 15. Re3 {[%emt 0:00:04]} g6 {[%emt 0:03:16]} 16. Rg3 {[%emt 0:00:06]} Qe7 {[%emt 0:01:50]} 17. Bh6 {[%emt 0:00:21]} Rfd8 {[%emt 0:01:34]} 18. Bg5 {[%emt 0:13:40]} f6 {[%emt 0:00:11]} 19. Bh4 {[%emt 0:00:06]} Kg7 {[%emt 0:02:41]} 20. Qg4 {[%emt 0:08:43]} Qf7 {[%emt 0:01:43]} 21. Rf3 {[%emt 0:00:11]} f5 {[%emt 0:00:19]} 22. Qf4 {[%emt 0:00:21]} Rd7 {[%emt 0:01:27]} 23. Re1 {[%emt 0:00:39]} Ne7 {[%emt 0:03:34]} 24. Bb5 {[%emt 0:07:43]} Bc6 {[%emt 0:01:46]} 25. d5 {[%emt 0:03:35]} Rxd5 {[%emt 0:01:45]} 26. Bc4 {[%emt 0:00:02]} b5 {[%emt 0:01:13]} 27. Bb3 {[%emt 0:01:53]} Ng8 {[%emt 0:09:06]} 28. Rfe3 {[%emt 0:01:40]} Re8 {[%emt 0:00:29]} 29. Bxd5 {[%emt 0:00:44]} Bxd5 {[%emt 0:00:06]} 30. Qd4+ {[%emt 0:00:11]} Nf6 {[%emt 0:02:29]} 31. Re5 {[%emt 0:00:18]} Rf8 {[%emt 0:00:42]} 32. a4 {[%emt 0:00:52]} h6 {[%emt 0:01:43]} 33. Bxf6+ {[%emt 0:00:30]} Qxf6 {[%emt 0:00:06]} 34. axb5 {[%emt 0:00:04]} 1-0

[Event "1st Easter Festival-A 2021"]
[Site "Bassano del Grappa"]
[Date "2021.04.03"]
[Round "5.10"]
[White "Dappiano, Andrea"]
[Black "Diermair, Andreas"]
[Result "1/2-1/2"]
[ECO "C11"]
[WhiteElo "2266"]
[BlackElo "2487"]
[Annotator "ChessBase"]
[PlyCount "53"]
[EventDate "2021.04.01"]
[EventType "swiss"]
[EventCountry "ITA"]
[SourceTitle "playchess.com"]
[Source "ChessBase"]
[SourceQuality "1"]
[TimeControl "5400+30"]

1. e4 {[%emt 0:00:00]} e6 {[%emt 0:00:00]} 2. d4 {[%emt 0:00:00]} d5 {[%emt 0:00:00]} 3. Nc3 {[%emt 0:00:00]} Nf6 {[%emt 0:00:27]} 4. e5 {[%emt 0:00:00]} Nfd7 {[%emt 0:00:02]} 5. f4 {[%emt 0:00:00]} c5 {[%emt 0:00:03]} 6. Nf3 {[%emt 0:00:01]} Be7 {[%emt 0:03:59]} 7. Be3 {[%emt 0:01:36]} b6 {[%emt 0:01:39]} 8. Qd2 {[%emt 0:01:46]} Nc6 {[%emt 0:03:23]} 9. Be2 {[%emt 0:06:26]} Bb7 {[%emt 0:04:14]} 10. O-O {[%emt 0:01:34]} O-O {[%emt 0:05:49]} 11. Rad1 {[%emt 0:05:04]} Kh8 {[%emt 0:03:46]} 12. Qe1 {[%emt 0:20:45]} Qc8 {[%emt 0:05:38]} 13. Qg3 {[%emt 0:03:46]} cxd4 {[%emt 0:08:57]} 14. Nxd4 {[%emt 0:01:06]} Nxd4 {[%emt 0:01:32]} 15. Bxd4 {[%emt 0:00:07]} Bc5 {[%emt 0:00:13]} 16. Kh1 {[%emt 0:06:02]} Ba6 {[%emt 0:03:24]} 17. Bxa6 {[%emt 0:13:13]} Qxa6 {[%emt 0:00:05]} 18. Bxc5 {[%emt 0:00:10]} bxc5 {[%emt 0:03:03]} 19. f5 {[%emt 0:01:43]} d4 {[%emt 0:00:58]} 20. Ne4 {[%emt 0:00:57]} exf5 {[%emt 0:05:05]} 21. Rxf5 {[%emt 0:03:06]} Rae8 {[%emt 0:04:05]} 22. Ng5 {[%emt 0:07:21]} f6 {[%emt 0:07:08]} 23. e6 {[%emt 0:03:02]} Ne5 {[%emt 0:06:25]} 24. Rxe5 {[%emt 0:04:38]} fxe5 {[%emt 0:03:50]} 25. Nf7+ {[%emt 0:01:38]} Kg8 {[%emt 0:00:05]} 26. Nh6+ {[%emt 0:00:28]} Kh8 {[%emt 0:00:05]} 27. Nf7+ {[%emt 0:00:07]} 1/2-1/2

[Event "1st Easter Festival-A 2021"]
[Site "Bassano del Grappa"]
[Date "2021.04.03"]
[Round "6.1"]
[White "Bernadskiy, Vitaliy"]
[Black "Shetty, Atulya"]
[Result "1-0"]
[ECO "B10"]
[WhiteElo "2599"]
[BlackElo "2447"]
[Annotator "ChessBase"]
[PlyCount "149"]
[EventDate "2021.04.01"]
[EventType "swiss"]
[EventCountry "ITA"]
[SourceTitle "playchess.com"]
[Source "ChessBase"]
[SourceQuality "1"]
[TimeControl "5400+30"]

1. c4 {[%emt 0:00:00]} c6 {[%emt 0:09:47]} 2. e4 {[%emt 0:00:00]} d5 {[%emt 0:00:13]} 3. exd5 {[%emt 0:00:00]} cxd5 {[%emt 0:00:10]} 4. cxd5 {[%emt 0:00:17]} Nf6 {[%emt 0:00:23]} 5. Qa4+ {[%emt 0:00:04]} Nbd7 {[%emt 0:00:34]} 6. Nc3 {[%emt 0:00:28]} g6 {[%emt 0:01:23]} 7. Nf3 {[%emt 0:00:27]} Bg7 {[%emt 0:01:24]} 8. Bc4 {[%emt 0:00:28]} O-O {[%emt 0:02:02]} 9. d3 {[%emt 0:00:29]} a6 {[%emt 0:01:12]} 10. Qa3 {[%emt 0:00:29]} b6 {[%emt 0:13:40]} 11. O-O {[%emt 0:02:23]} Bb7 {[%emt 0:02:29]} 12. Re1 {[%emt 0:01:18]} Re8 {[%emt 0:02:10]} 13. Ng5 {[%emt 0:00:28]} b5 {[%emt 0:05:32]} 14. Bb3 {[%emt 0:00:34]} Nb6 {[%emt 0:05:24]} 15. d6 {[%emt 0:01:13]} e6 {[%emt 0:00:13]} 16. Nge4 {[%emt 0:01:53]} h6 {[%emt 0:14:15]} 17. Bd2 {[%emt 0:09:00]} Nxe4 {[%emt 0:10:22]} 18. Nxe4 {[%emt 0:01:26]} Bxe4 {[%emt 0:02:08]} 19. dxe4 {[%emt 0:05:02]} Be5 {[%emt 0:00:10]} 20. Qc5 {[%emt 0:04:21]} Bxd6 {[%emt 0:02:19]} 21. Qe3 {[%emt 0:00:03]} Bf8 {[%emt 0:04:47]} 22. Red1 {[%emt 0:01:36]} Qb8 {[%emt 0:02:32]} 23. Rac1 {[%emt 0:01:17]} Qb7 {[%emt 0:03:05]} 24. Ba5 {[%emt 0:00:55]} Nc4 {[%emt 0:01:47]} 25. Bxc4 {[%emt 0:01:03]} bxc4 {[%emt 0:00:02]} 26. Bc3 {[%emt 0:00:13]} Bg7 {[%emt 0:03:27]} 27. Bxg7 {[%emt 0:03:43]} Kxg7 {[%emt 0:00:02]} 28. Rd2 {[%emt 0:00:26]} Red8 {[%emt 0:02:31]} 29. Rdc2 {[%emt 0:00:23]} Rd3 {[%emt 0:01:02]} 30. Qf4 {[%emt 0:00:37]} Rad8 {[%emt 0:01:53]} 31. h4 {[%emt 0:00:09]} Qb8 {[%emt 0:03:38]} 32. e5 {[%emt 0:00:30]} R3d5 {[%emt 0:00:13]} 33. Re2 {[%emt 0:00:29]} Rd1+ {[%emt 0:00:49]} 34. Re1 {[%emt 0:00:25]} Rxe1+ {[%emt 0:01:28]} 35. Rxe1 {[%emt 0:00:04]} Rd5 {[%emt 0:00:52]} 36. h5 {[%emt 0:00:28]} gxh5 {[%emt 0:01:29]} 37. b3 {[%emt 0:05:10]} cxb3 {[%emt 0:00:31]} 38. Re3 {[%emt 0:01:34]} bxa2 {[%emt 0:00:29]} 39. Qf6+ {[%emt 0:02:30]} Kf8 {[%emt 0:00:19]} 40. Qxh6+ {[%emt 0:01:40]} Ke7 {[%emt 0:00:26]} 41. Qf6+ {[%emt 0:00:08]} Ke8 {[%emt 0:00:51]} 42. Qh8+ {[%emt 0:00:32]} Ke7 {[%emt 0:00:05]} 43. Qf6+ {[%emt 0:00:34]} Ke8 {[%emt 0:00:01]} 44. Qh8+ {[%emt 0:01:25]} Ke7 {[%emt 0:02:37]} 45. Qxb8 {[%emt 0:00:23]} a1=Q+ {[%emt 0:00:05]} 46. Kh2 {[%emt 0:00:03]} Qd4 {[%emt 0:00:25]} 47. g3 {[%emt 0:00:05]} h4 {[%emt 0:00:33]} 48. Qh8 {[%emt 0:00:55]} hxg3+ {[%emt 0:00:32]} 49. Kxg3 {[%emt 0:00:04]} Qd1 {[%emt 0:01:00]} 50. Kh2 {[%emt 0:01:11]} Rd3 {[%emt 0:00:46]} 51. Qh4+ {[%emt 0:00:15]} Ke8 {[%emt 0:00:25]} 52. Re4 {[%emt 0:00:18]} Kd7 {[%emt 0:00:40]} 53. Rf4 {[%emt 0:00:25]} Kc6 {[%emt 0:00:37]} 54. Rxf7 {[%emt 0:00:10]} Rd4 {[%emt 0:00:35]} 55. Qh8 {[%emt 0:00:47]} Rd8 {[%emt 0:00:20]} 56. Qh3 {[%emt 0:00:07]} Qd5 {[%emt 0:00:40]} 57. Qc3+ {[%emt 0:01:29]} Kb6 {[%emt 0:00:10]} 58. Rh7 {[%emt 0:01:17]} Rd7 {[%emt 0:00:49]} 59. Rh8 {[%emt 0:00:38]} Ka7 {[%emt 0:00:36]} 60. Qe3+ {[%emt 0:02:02]} Kb7 {[%emt 0:00:25]} 61. Qe2 {[%emt 0:05:15]} Qd4 {[%emt 0:00:29]} 62. Qf3+ {[%emt 0:00:49]} Qd5 {[%emt 0:00:02]} 63. Qf4 {[%emt 0:00:53]} Ka7 {[%emt 0:00:26]} 64. Qg3 {[%emt 0:02:36]} Qe4 {[%emt 0:00:54]} 65. Rh4 {[%emt 0:00:05]} Qd3 {[%emt 0:00:27]} 66. Qxd3 {[%emt 0:01:24]} Rxd3 {[%emt 0:00:02]} 67. Rh6 {[%emt 0:02:00]} a5 {[%emt 0:00:29]} 68. Rxe6 {[%emt 0:00:04]} Kb7 {[%emt 0:01:06]} 69. Re7+ {[%emt 0:02:27]} Kb6 {[%emt 0:00:16]} 70. Re8 {[%emt 0:00:39]} a4 {[%emt 0:00:54]} 71. e6 {[%emt 0:00:20]} a3 {[%emt 0:00:25]} 72. e7 {[%emt 0:00:15]} a2 {[%emt 0:00:06]} 73. Rb8+ {[%emt 0:00:11]} Kc5 {[%emt 0:00:28]} 74. e8=Q {[%emt 0:00:54]} a1=Q {[%emt 0:00:05]} 75. Qb5+ {[%emt 0:43:15]} 1-0